[Event "Kvibergspelen September 2019"]
[Site "Prioritet Serneke Arena, Krutvagen 2, Gothenburg, Sweden"]
[Date "2019.09.29"]
[Round "8.20"]
[White "Hardlei, Johan"]
[Black "Malmstig, Erik"]
[Result "1/2-1/2"]
[TimeControl "15 minutes + 5 seconds per move from move one (Round 1 - 4) / 90 minutes + 30 seconds per move from move one (Round 5 - 8)"]
[BlackTitle "FM"]
[WhiteFideId "1440489"]
[BlackFideId "1702866"]
[WhiteElo "2054"]
[BlackElo "2257"]

1. Nf3 {[%clk 01:28:16]} {[%emt 00:02:43]} d6 {[%clk 01:30:45]} {[%emt
00:00:15]} 2. d4 {[%clk 01:28:36]} {[%emt 00:00:11]} Bg4 {[%clk 01:31:07]}
{[%emt 00:00:08]} 3. e3 {[%clk 01:28:36]} {[%emt 00:00:30]} Nd7 {[%clk
01:31:27]} {[%emt 00:00:10]} 4. Be2 {[%clk 01:29:00]} {[%emt 00:00:07]} e5
{[%clk 01:31:41]} {[%emt 00:00:16]} 5. dxe5 {[%clk 01:27:37]} {[%emt 00:01:53]}
dxe5 {[%clk 01:31:48]} {[%emt 00:00:23]} 6. Nxe5 {[%clk 01:24:19]} {[%emt
00:03:48]} Bb4+ {[%clk 01:32:08]} {[%emt 00:00:10]} 7. c3 {[%clk 01:22:50]}
{[%emt 00:01:59]} Nxe5 {[%clk 01:26:39]} {[%emt 00:05:58]} 8. Qxd8+ {[%clk
01:18:58]} {[%emt 00:04:22]} Rxd8 {[%clk 01:26:46]} {[%emt 00:00:23]} 9. Bxg4
{[%clk 01:18:46]} {[%emt 00:00:42]} Bxc3+ {[%clk 01:26:27]} {[%emt 00:00:50]}
10. Nxc3 {[%clk 01:18:53]} {[%emt 00:00:24]} Nxg4 {[%clk 01:26:43]} {[%emt
00:00:13]} 11. b3 {[%clk 01:18:33]} {[%emt 00:00:50]} Ne7 {[%clk 01:21:23]}
{[%emt 00:05:50]} 12. Ba3 {[%clk 01:17:06]} {[%emt 00:01:58]} f5 {[%clk
01:08:19]} {[%emt 00:13:34]} 13. Nb5 {[%clk 01:13:32]} {[%emt 00:04:04]} Nd5
{[%clk 00:58:56]} {[%emt 00:09:53]} 14. Rc1 {[%clk 01:11:03]} {[%emt 00:02:58]}
Rd7 {[%clk 00:57:33]} {[%emt 00:01:54]} 15. Ke2 {[%clk 01:02:19]} {[%emt
00:09:13]} Kf7 {[%clk 00:53:29]} {[%emt 00:04:34]} 16. Rhd1 {[%clk 00:58:02]}
{[%emt 00:04:48]} Ngf6 {[%clk 00:52:10]} {[%emt 00:01:48]} 17. Bb2 {[%clk
00:56:36]} {[%emt 00:01:56]} Re8 {[%clk 00:44:17]} {[%emt 00:08:24]} 18. Bxf6
{[%clk 00:53:13]} {[%emt 00:03:52]} gxf6 {[%clk 00:43:49]} {[%emt 00:00:57]} 19.
Rc4 {[%clk 00:32:31]} {[%emt 00:21:13]} Red8 {[%clk 00:28:53]} {[%emt
00:15:27]} 20. Kf3 {[%clk 00:27:41]} {[%emt 00:05:19]} c6 {[%clk 00:27:52]}
{[%emt 00:01:31]} 21. Nd4 {[%clk 00:25:51]} {[%emt 00:02:20]} Ne7 {[%clk
00:26:54]} {[%emt 00:01:28]} 22. Rdc1 {[%clk 00:23:37]} {[%emt 00:02:45]} Ng6
{[%clk 00:25:25]} {[%emt 00:01:59]} 23. Rc5 {[%clk 00:20:29]} {[%emt 00:03:38]}
Ne5+ {[%clk 00:18:55]} {[%emt 00:06:59]} 24. Ke2 {[%clk 00:20:19]} {[%emt
00:00:41]} f4 {[%clk 00:19:13]} {[%emt 00:00:12]} 25. b4 {[%clk 00:15:54]}
{[%emt 00:04:53]} fxe3 {[%clk 00:14:56]} {[%emt 00:04:49]} 26. fxe3 {[%clk
00:16:13]} {[%emt 00:00:11]} Rg8 {[%clk 00:10:33]} {[%emt 00:04:53]} 27. g3
{[%clk 00:15:54]} {[%emt 00:00:49]} Rg4 {[%clk 00:10:17]} {[%emt 00:00:46]} 28.
b5 {[%clk 00:11:53]} {[%emt 00:04:32]} Re4 {[%clk 00:08:10]} {[%emt 00:02:37]}
29. bxc6 {[%clk 00:09:00]} {[%emt 00:03:23]} bxc6 {[%clk 00:08:21]} {[%emt
00:00:19]} 30. Rd1 {[%clk 00:07:13]} {[%emt 00:02:16]} Ng4 {[%clk 00:07:47]}
{[%emt 00:01:04]} 31. Kf3 {[%clk 00:00:39]} {[%emt 00:07:05]} Rxe3+ {[%clk
00:07:55]} {[%emt 00:00:21]} 32. Kxg4 {[%clk 00:00:57]} {[%emt 00:00:12]} Re4+
{[%clk 00:08:17]} {[%emt 00:00:09]} 33. Kf5 {[%clk 00:00:36]} {[%emt 00:00:51]}
Rexd4 {[%clk 00:08:34]} {[%emt 00:00:12]} 34. Rxd4 {[%clk 00:00:56]} {[%emt
00:00:11]} Rxd4 {[%clk 00:09:01]} {[%emt 00:00:03]} 35. Rxc6 {[%clk 00:01:09]}
{[%emt 00:00:17]} Rd5+ {[%clk 00:09:10]} {[%emt 00:00:20]} 36. Ke4 {[%clk
00:00:59]} {[%emt 00:00:39]} Ra5 {[%clk 00:08:54]} {[%emt 00:00:47]} 37. Rc2
{[%clk 00:00:44]} {[%emt 00:00:45]} Kg6 {[%clk 00:08:50]} {[%emt 00:00:35]} 38.
Kd4 {[%clk 00:00:35]} {[%emt 00:00:39]} h5 {[%clk 00:09:09]} {[%emt 00:00:10]}
39. Kc4 {[%clk 00:00:42]} {[%emt 00:00:23]} Kg5 {[%clk 00:07:32]} {[%emt
00:02:07]} 40. Kb4 {[%clk 00:00:50]} {[%emt 00:00:22]} Ra6 {[%clk 00:07:31]}
{[%emt 00:00:30]} 41. a4 {[%clk 00:00:32]} {[%emt 00:00:49]} Rb6+ {[%clk
00:06:59]} {[%emt 00:01:02]} 42. Ka5 {[%clk 00:00:33]} {[%emt 00:00:29]} h4
{[%clk 00:02:52]} {[%emt 00:04:37]} 43. Rc5 {[%clk 00:00:35]} {[%emt 00:00:29]}
f5 {[%clk 00:03:13]} {[%emt 00:00:09]} 44. gxh4 {[%clk 00:00:34]} {[%emt
00:00:31]} Kf4 {[%clk 00:03:14]} {[%emt 00:00:28]} 45. Rc7 {[%clk 00:00:35]}
{[%emt 00:00:30]} Rh6 {[%clk 00:02:18]} {[%emt 00:01:25]} 46. Rxa7 {[%clk
00:00:39]} {[%emt 00:00:26]} Rxh4 {[%clk 00:02:40]} {[%emt 00:00:07]} 47. Kb5
{[%clk 00:00:33]} {[%emt 00:00:36]} Rxh2 {[%clk 00:03:01]} {[%emt 00:00:10]} 48.
a5 {[%clk 00:00:35]} {[%emt 00:00:28]} Rb2+ {[%clk 00:02:42]} {[%emt 00:00:48]}
49. Kc4 {[%clk 00:00:36]} {[%emt 00:00:29]} Kf3 {[%clk 00:01:44]} {[%emt
00:01:28]} 50. a6 {[%clk 00:00:45]} {[%emt 00:00:22]} f4 {[%clk 00:01:56]}
{[%emt 00:00:17]} 51. Ra8 {[%clk 00:00:44]} {[%emt 00:00:31]} Ra2 {[%clk
00:01:56]} {[%emt 00:00:30]} 52. a7 {[%clk 00:00:51]} {[%emt 00:00:23]} Kf2
{[%clk 00:02:13]} {[%emt 00:00:13]} 53. Rf8 {[%clk 00:00:34]} {[%emt 00:00:47]}
1/2-1/2